[Event "Czech Open Rapid G1 2024"]
[Site "Pardubice"]
[Date "2024.07.18"]
[Round "6.28"]
[White "Dobrowolski, Kamil"]
[Black "Ptacek, Lubos"]
[Result "0-1"]
[Annotator "RC"]
[ECO "C72"]
[WhiteElo "1801"]
[BlackElo "2036"]
[PlyCount "74"]
[EventDate "2024.07.16"]
[EventType "swiss"]
[EventCountry "CZE"]
[SourceTitle "playchess.com"]
[Source "ChessBase"]
[SourceQuality "1"]
[TimeControl "1200+10"]

1. e4 {[%emt 0:00:03]} e5 {[%emt 0:00:02]} 2. Nf3 {[%emt 0:00:03]} Nc6 {[%emt 0:00:02]} 3. Bb5 {[%emt 0:00:03]} a6 {[%emt 0:00:03]} 4. Ba4 {[%emt 0:00:01]} d6 {[%emt 0:00:04]} 5. O-O {[%emt 0:00:14]} Bd7 {[%emt 0:00:10]} 6. a3 {[%emt 0:00:02]} Be7 {[%emt 0:00:05]} 7. Nc3 {[%emt 0:00:15]} Nf6 {[%emt 0:00:08]} 8. d4 {[%emt 0:00:09]} b5 {[%emt 0:00:26]} 9. Bb3 {[%emt 0:00:01]} exd4 {[%emt 0:00:11]} 10. Nxd4 {[%emt 0:00:03]} Ne5 {[%emt 0:00:17]} 11. f4 {[%emt 0:00:28]} Nc6 {[%emt 0:00:28]} 12. Nxc6 {[%emt 0:00:29]} Bxc6 {[%emt 0:00:02]} 13. e5 {[%emt 0:00:07]} dxe5 {[%emt 0:00:35]} 14. fxe5 {[%emt 0:00:47]} Qxd1 {[%emt 0:00:30]} 15. Nxd1 {[%emt 0:01:09]} Nd5 {[%emt 0:00:26]} 16. c4 {[%emt 0:01:44]} bxc4 {[%emt 0:01:02]} 17. Bxc4 {[%emt 0:00:03]} Bc5+ {[%emt 0:00:16]} 18. Kh1 {[%emt 0:00:04]} O-O {[%emt 0:00:05]} 19. Bxd5 {[%emt 0:03:16]} Bxd5 {[%emt 0:00:01]} 20. Be3 {[%emt 0:00:26]} Be7 {[%emt 0:00:32]} 21. Rc1 {[%emt 0:00:18]} Rfc8 {[%emt 0:00:40]} 22. Nc3 {[%emt 0:01:02]} Be6 {[%emt 0:00:18]} 23. Ne4 {[%emt 0:00:56]} Rab8 {[%emt 0:00:24]} 24. Rf2 {[%emt 0:00:41]} Rb5 {[%emt 0:01:17]} 25. Bc5 {[%emt 0:01:54]} Bh4 {[%emt 0:01:09]} 26. Rf4 {[%emt 0:02:01]} Bd8 {[%emt 0:00:14]} 27. b4 {[%emt 0:00:32]} h6 {[%emt 0:00:54]} 28. Nc3 {[%emt 0:01:13]} Bg5 {[%emt 0:00:44]} 29. Rff1 {[%emt 0:00:06]} Rbb8 {[%emt 0:01:06]} 30. Rcd1 {[%emt 0:00:48]} Rd8 {[%emt 0:00:20]} 31. Ne4 {[%emt 0:01:48]} Rxd1 {[%emt 0:00:46]} 32. Rxd1 {[%emt 0:00:05]} Bf4 {[%emt 0:00:05]} 33. Bd4 {[%emt 0:01:04]} Rd8 {[%emt 0:00:12]} 34. Nc3 {[%emt 0:00:06]} Bg4 {[%emt 0:00:37]} 35. Rd3 {[%emt 0:01:21]} Bxe5 {[%emt 0:00:25]} 36. h3 {[%emt 0:00:03]} Bf5 {[%emt 0:00:25]} 37. Rf3 {[%emt 0:00:15]} Bxd4 {[%emt 0:00:20]} 0-1

[Event "Czech Open Rapid G1 2024"]
[Site "Pardubice"]
[Date "2024.07.18"]
[Round "6.29"]
[White "Kopriva, Martin"]
[Black "Kavalir, Jan"]
[Result "1-0"]
[Annotator "RC"]
[ECO "A69"]
[WhiteElo "2159"]
[BlackElo "1992"]
[PlyCount "53"]
[EventDate "2024.07.16"]
[EventType "swiss"]
[EventCountry "CZE"]
[SourceTitle "playchess.com"]
[Source "ChessBase"]
[SourceQuality "1"]
[TimeControl "1200+10"]

1. d4 {[%emt 0:00:10]} Nf6 {[%emt 0:00:10]} 2. c4 {[%emt 0:00:10]} g6 {[%emt 0:00:10]} 3. Nc3 {[%emt 0:00:10]} Bg7 {[%emt 0:00:00]} 4. e4 {[%emt 0:00:00]} d6 {[%emt 0:00:00]} 5. f4 {[%emt 0:00:00]} O-O {[%emt 0:00:00]} 6. Nf3 {[%emt 0:00:00]} c5 {[%emt 0:00:00]} 7. d5 {[%emt 0:00:00]} e6 {[%emt 0:00:07]} 8. Be2 {[%emt 0:00:00]} exd5 {[%emt 0:00:07]} 9. cxd5 {[%emt 0:00:00]} Re8 {[%emt 0:00:09]} 10. e5 {[%emt 0:00:00]} dxe5 {[%emt 0:00:13]} 11. fxe5 {[%emt 0:00:00]} Ng4 {[%emt 0:01:00]} 12. Bg5 {[%emt 0:00:00]} Qb6 {[%emt 0:01:02]} 13. O-O {[%emt 0:00:06]} c4+ {[%emt 0:01:17]} 14. Kh1 {[%emt 0:00:19]} Nxe5 {[%emt 0:02:14]} 15. Nxe5 {[%emt 0:00:05]} Bxe5 {[%emt 0:00:10]} 16. Bxc4 {[%emt 0:00:09]} f6 {[%emt 0:04:07]} 17. d6+ {[%emt 0:01:57]} Be6 {[%emt 0:02:12]} 18. Nd5 {[%emt 0:01:13]} Qd4 {[%emt 0:02:23]} 19. Qxd4 {[%emt 0:04:31]} Bxd4 {[%emt 0:00:02]} 20. Bxf6 {[%emt 0:00:10]} Nc6 {[%emt 0:04:28]} 21. Bxd4 {[%emt 0:03:17]} Nxd4 {[%emt 0:00:02]} 22. Nf6+ {[%emt 0:01:03]} Kh8 {[%emt 0:00:09]} 23. Nxe8 {[%emt 0:00:33]} Bxc4 {[%emt 0:00:10]} 24. Rf4 {[%emt 0:00:10]} Nc2 {[%emt 0:00:10]} 25. Rxc4 {[%emt 0:00:10]} Nxa1 {[%emt 0:00:10]} 26. d7 {[%emt 0:00:10]} Rd8 {[%emt 0:00:10]} 27. Rc8 {[%emt 0:00:10]} 1-0

[Event "Czech Open Rapid G1 2024"]
[Site "Pardubice"]
[Date "2024.07.18"]
[Round "6.30"]
[White "Novotny, Josef"]
[Black "Tyshniuk, Roman"]
[Result "1/2-1/2"]
[Annotator "RC"]
[ECO "A00"]
[WhiteElo "2033"]
[BlackElo "1903"]
[PlyCount "125"]
[EventDate "2024.07.16"]
[EventType "swiss"]
[EventCountry "CZE"]
[SourceTitle "playchess.com"]
[Source "ChessBase"]
[SourceQuality "1"]
[TimeControl "1200+10"]

1. e3 {[%emt 0:00:14]} Nf6 {[%emt 0:00:08]} 2. d3 {[%emt 0:00:02]} e5 {[%emt 0:00:06]} 3. Nf3 {[%emt 0:00:05]} Nc6 {[%emt 0:00:01]} 4. a3 {[%emt 0:00:02]} d5 {[%emt 0:00:03]} 5. h3 {[%emt 0:00:02]} h6 {[%emt 0:00:15]} 6. Nc3 {[%emt 0:00:03]} Be6 {[%emt 0:00:02]} 7. Be2 {[%emt 0:00:01]} Qe7 {[%emt 0:00:19]} 8. b4 {[%emt 0:00:02]} e4 {[%emt 0:01:26]} 9. Nd4 {[%emt 0:00:14]} Nxd4 {[%emt 0:00:14]} 10. exd4 {[%emt 0:00:03]} O-O-O {[%emt 0:00:31]} 11. Bf4 {[%emt 0:00:08]} Qd7 {[%emt 0:02:29]} 12. dxe4 {[%emt 0:01:02]} dxe4 {[%emt 0:00:38]} 13. Be5 {[%emt 0:00:04]} Qc6 {[%emt 0:00:29]} 14. Nb5 {[%emt 0:00:31]} Kd7 {[%emt 0:02:01]} 15. O-O {[%emt 0:01:33]} Bc4 {[%emt 0:01:59]} 16. Nxa7 {[%emt 0:02:21]} Bxe2 {[%emt 0:00:07]} 17. Qxe2 {[%emt 0:00:03]} Qa6 {[%emt 0:00:35]} 18. Nb5 {[%emt 0:00:27]} c6 {[%emt 0:00:21]} 19. Nc3 {[%emt 0:00:03]} Qxe2 {[%emt 0:00:06]} 20. Nxe2 {[%emt 0:00:02]} Nd5 {[%emt 0:00:01]} 21. Ng3 {[%emt 0:00:10]} f6 {[%emt 0:00:14]} 22. c4 {[%emt 0:00:02]} fxe5 {[%emt 0:01:40]} 23. cxd5 {[%emt 0:00:03]} cxd5 {[%emt 0:00:21]} 24. dxe5 {[%emt 0:00:13]} Re8 {[%emt 0:01:20]} 25. f4 {[%emt 0:01:02]} exf3 {[%emt 0:00:05]} 26. Rxf3 {[%emt 0:00:01]} Rxe5 {[%emt 0:00:03]} 27. Raf1 {[%emt 0:00:08]} Bd6 {[%emt 0:02:29]} 28. Rf7+ {[%emt 0:00:04]} Re7 {[%emt 0:00:01]} 29. Rxe7+ {[%emt 0:00:22]} Bxe7 {[%emt 0:00:08]} 30. Rf7 {[%emt 0:00:05]} g6 {[%emt 0:01:50]} 31. Rg7 {[%emt 0:00:30]} Ra8 {[%emt 0:00:23]} 32. Rxg6 {[%emt 0:00:21]} Rxa3 {[%emt 0:00:01]} 33. Nf5 {[%emt 0:05:23]} Bxb4 {[%emt 0:00:04]} 34. Rxh6 {[%emt 0:00:06]} Bc5+ {[%emt 0:00:48]} 35. Kf1 {[%emt 0:00:06]} Ra1+ {[%emt 0:00:14]} 36. Ke2 {[%emt 0:00:06]} Ra2+ {[%emt 0:00:02]} 37. Kd3 {[%emt 0:00:28]} Rxg2 {[%emt 0:00:12]} 38. h4 {[%emt 0:00:38]} b5 {[%emt 0:00:48]} 39. h5 {[%emt 0:00:02]} b4 {[%emt 0:00:48]} 40. Rg6 {[%emt 0:00:08]} Rh2 {[%emt 0:00:57]} 41. h6 {[%emt 0:00:02]} b3 {[%emt 0:00:02]} 42. Rg7+ {[%emt 0:00:12]} Kc6 {[%emt 0:01:07]} 43. Nd4+ {[%emt 0:00:03]} Bxd4 {[%emt 0:00:07]} 44. Kxd4 {[%emt 0:00:01]} Rxh6 {[%emt 0:00:25]} 45. Kc3 {[%emt 0:00:05]} Rh3+ {[%emt 0:00:04]} 46. Kb2 {[%emt 0:00:01]} Kc5 {[%emt 0:00:04]} 47. Rc7+ {[%emt 0:00:47]} Kd4 {[%emt 0:00:05]} 48. Rb7 {[%emt 0:00:05]} Rd3 {[%emt 0:00:52]} 49. Re7 {[%emt 0:00:05]} Re3 {[%emt 0:00:09]} 50. Rb7 {[%emt 0:00:05]} Kd3 {[%emt 0:00:32]} 51. Rxb3+ {[%emt 0:00:14]} Kd2 {[%emt 0:00:01]} 52. Rb5 {[%emt 0:00:59]} d4 {[%emt 0:00:04]} 53. Rc5 {[%emt 0:00:02]} d3 {[%emt 0:00:11]} 54. Rh5 {[%emt 0:00:09]} Re2 {[%emt 0:00:12]} 55. Rh1 {[%emt 0:00:23]} Ke3+ {[%emt 0:00:41]} 56. Kc1 {[%emt 0:00:01]} Ra2 {[%emt 0:00:01]} 57. Rh3+ {[%emt 0:00:05]} Kd4 {[%emt 0:00:03]} 58. Rh8 {[%emt 0:00:15]} Ra1+ {[%emt 0:00:00]} 59. Kd2 {[%emt 0:00:02]} Ra2+ {[%emt 0:00:02]} 60. Kd1 {[%emt 0:00:01]} Kc3 {[%emt 0:00:01]} 61. Rc8+ {[%emt 0:00:03]} Kd4 {[%emt 0:00:01]} 62. Rd8+ {[%emt 0:00:02]} Kc3 {[%emt 0:00:00]} 63. Rc8+ {[%emt 0:00:01]} 1/2-1/2

[Event "Czech Open Rapid G1 2024"]
[Site "Pardubice"]
[Date "2024.07.18"]
[Round "6.31"]
[White "Gschwendtner, Stanislav"]
[Black "Dolensky, Filip"]
[Result "0-1"]
[Annotator "RC"]
[ECO "A21"]
[WhiteElo "2011"]
[BlackElo "2085"]
[PlyCount "94"]
[EventDate "2024.07.16"]
[EventType "swiss"]
[EventCountry "CZE"]
[SourceTitle "playchess.com"]
[Source "ChessBase"]
[SourceQuality "1"]
[TimeControl "1200+10"]

1. c4 {[%emt 0:00:25]} e5 {[%emt 0:00:16]} 2. g3 {[%emt 0:00:09]} Nc6 {[%emt 0:00:04]} 3. Nc3 {[%emt 0:00:03]} Bb4 {[%emt 0:00:02]} 4. Bg2 {[%emt 0:00:07]} Bxc3 {[%emt 0:00:02]} 5. bxc3 {[%emt 0:00:06]} d6 {[%emt 0:00:01]} 6. e4 {[%emt 0:00:09]} f5 {[%emt 0:00:22]} 7. exf5 {[%emt 0:00:11]} Bxf5 {[%emt 0:00:07]} 8. d3 {[%emt 0:00:29]} Nf6 {[%emt 0:00:03]} 9. Ne2 {[%emt 0:00:19]} O-O {[%emt 0:00:04]} 10. O-O {[%emt 0:00:04]} Qd7 {[%emt 0:00:02]} 11. d4 {[%emt 0:01:04]} Rae8 {[%emt 0:00:14]} 12. c5 {[%emt 0:00:32]} d5 {[%emt 0:01:30]} 13. dxe5 {[%emt 0:00:12]} Nxe5 {[%emt 0:00:02]} 14. Nd4 {[%emt 0:00:35]} Bg4 {[%emt 0:00:28]} 15. f3 {[%emt 0:00:21]} Bh3 {[%emt 0:00:20]} 16. Bf4 {[%emt 0:00:45]} Bxg2 {[%emt 0:00:02]} 17. Kxg2 {[%emt 0:00:01]} c6 {[%emt 0:00:11]} 18. Bxe5 {[%emt 0:00:41]} Rxe5 {[%emt 0:00:01]} 19. Qd2 {[%emt 0:00:14]} Rfe8 {[%emt 0:00:05]} 20. Rae1 {[%emt 0:00:04]} Qe7 {[%emt 0:00:28]} 21. Rxe5 {[%emt 0:00:23]} Qxe5 {[%emt 0:00:01]} 22. Kf2 {[%emt 0:00:07]} Nd7 {[%emt 0:00:22]} 23. Nb3 {[%emt 0:00:26]} Qf5 {[%emt 0:01:00]} 24. g4 {[%emt 0:00:32]} Qf6 {[%emt 0:00:46]} 25. g5 {[%emt 0:00:58]} Qf5 {[%emt 0:00:28]} 26. Re1 {[%emt 0:00:33]} Rxe1 {[%emt 0:00:26]} 27. Qxe1 {[%emt 0:00:12]} Ne5 {[%emt 0:00:02]} 28. Qd1 {[%emt 0:03:25]} Qxg5 {[%emt 0:00:18]} 29. Nd4 {[%emt 0:00:12]} Qh4+ {[%emt 0:00:08]} 30. Kg2 {[%emt 0:00:08]} Ng6 {[%emt 0:00:33]} 31. Ne6 {[%emt 0:00:27]} Qf6 {[%emt 0:00:29]} 32. Nd4 {[%emt 0:00:30]} Nf4+ {[%emt 0:00:04]} 33. Kh1 {[%emt 0:00:20]} Qg6 {[%emt 0:00:27]} 34. Qf1 {[%emt 0:00:48]} Qg5 {[%emt 0:01:04]} 35. a4 {[%emt 0:00:12]} Qe7 {[%emt 0:00:15]} 36. Qc1 {[%emt 0:00:45]} Nd3 {[%emt 0:00:59]} 37. Qd2 {[%emt 0:00:21]} Qe1+ {[%emt 0:04:10]} 38. Qxe1 {[%emt 0:00:02]} Nxe1 {[%emt 0:00:01]} 39. a5 {[%emt 0:00:23]} a6 {[%emt 0:00:29]} 40. Kg1 {[%emt 0:01:09]} Kf7 {[%emt 0:02:01]} 41. Nf5 {[%emt 0:01:48]} Nxf3+ {[%emt 0:00:02]} 42. Kf2 {[%emt 0:00:02]} Nxh2 {[%emt 0:02:01]} 43. Nd6+ {[%emt 0:00:16]} Ke7 {[%emt 0:00:05]} 44. Nxb7 {[%emt 0:00:34]} Ng4+ {[%emt 0:00:08]} 45. Kf3 {[%emt 0:01:12]} Ne5+ {[%emt 0:00:02]} 46. Kf4 {[%emt 0:00:06]} Nc4 {[%emt 0:00:03]} 47. Kg5 {[%emt 0:00:34]} Kd7 {[%emt 0:00:03]} 0-1

[Event "Czech Open Rapid G1 2024"]
[Site "Pardubice"]
[Date "2024.07.18"]
[Round "6.32"]
[White "Laith, Kasib"]
[Black "Lihotsky, Lukas"]
[Result "0-1"]
[Annotator "RC"]
[ECO "B18"]
[WhiteElo "2075"]
[BlackElo "2129"]
[PlyCount "58"]
[EventDate "2024.07.16"]
[EventType "swiss"]
[EventCountry "CZE"]
[SourceTitle "playchess.com"]
[Source "ChessBase"]
[SourceQuality "1"]
[TimeControl "1200+10"]

1. e4 {[%emt 0:00:39]} c6 {[%emt 0:00:04]} 2. Nc3 {[%emt 0:01:13]} d5 {[%emt 0:00:03]} 3. d4 {[%emt 0:00:11]} dxe4 {[%emt 0:00:04]} 4. Nxe4 {[%emt 0:00:02]} Bf5 {[%emt 0:00:02]} 5. Ng3 {[%emt 0:00:03]} Bg6 {[%emt 0:00:04]} 6. Nh3 {[%emt 0:00:15]} Nf6 {[%emt 0:00:08]} 7. Nf4 {[%emt 0:00:02]} Nbd7 {[%emt 0:00:01]} 8. h4 {[%emt 0:00:16]} e5 {[%emt 0:00:28]} 9. Nxg6 {[%emt 0:01:20]} hxg6 {[%emt 0:00:04]} 10. dxe5 {[%emt 0:02:06]} Qa5+ {[%emt 0:00:24]} 11. Bd2 {[%emt 0:00:10]} Qxe5+ {[%emt 0:00:03]} 12. Qe2 {[%emt 0:00:04]} O-O-O {[%emt 0:01:00]} 13. Qxe5 {[%emt 0:00:31]} Nxe5 {[%emt 0:00:02]} 14. Be2 {[%emt 0:00:10]} Bc5 {[%emt 0:00:56]} 15. f3 {[%emt 0:00:40]} Rhe8 {[%emt 0:00:45]} 16. O-O-O {[%emt 0:01:05]} Nd5 {[%emt 0:01:57]} 17. f4 {[%emt 0:02:13]} Nd7 {[%emt 0:00:13]} 18. Bf3 {[%emt 0:00:44]} N7f6 {[%emt 0:01:04]} 19. h5 {[%emt 0:04:11]} Bf2 {[%emt 0:01:57]} 20. Nf1 {[%emt 0:00:57]} gxh5 {[%emt 0:00:15]} 21. c4 {[%emt 0:00:32]} Nb6 {[%emt 0:00:50]} 22. b3 {[%emt 0:00:02]} g6 {[%emt 0:01:08]} 23. Bc3 {[%emt 0:01:08]} Rxd1+ {[%emt 0:00:13]} 24. Bxd1 {[%emt 0:00:03]} Ne4 {[%emt 0:00:08]} 25. Bb2 {[%emt 0:00:50]} Bc5 {[%emt 0:00:57]} 26. f5 {[%emt 0:03:37]} Nf2 {[%emt 0:00:49]} 27. Rh4 {[%emt 0:01:00]} Re1 {[%emt 0:00:58]} 28. fxg6 {[%emt 0:00:02]} fxg6 {[%emt 0:00:47]} 29. Kd2 {[%emt 0:00:37]} Bb4+ {[%emt 0:01:20]} 0-1

[Event "Czech Open Rapid G1 2024"]
[Site "Pardubice"]
[Date "2024.07.18"]
[Round "6.33"]
[White "Park, Inchan"]
[Black "Alexikov, Alexander"]
[Result "1/2-1/2"]
[Annotator "RC"]
[ECO "E60"]
[WhiteElo "1856"]
[BlackElo "2183"]
[PlyCount "69"]
[EventDate "2024.07.16"]
[EventType "swiss"]
[EventCountry "CZE"]
[SourceTitle "playchess.com"]
[Source "ChessBase"]
[SourceQuality "1"]
[TimeControl "1200+10"]

1. d4 {[%emt 0:00:03]} Nf6 {[%emt 0:00:01]} 2. Nf3 {[%emt 0:00:02]} g6 {[%emt 0:00:01]} 3. g3 {[%emt 0:00:02]} Bg7 {[%emt 0:00:01]} 4. Bg2 {[%emt 0:00:01]} O-O {[%emt 0:00:02]} 5. O-O {[%emt 0:00:04]} c6 {[%emt 0:00:02]} 6. c4 {[%emt 0:00:06]} d6 {[%emt 0:00:01]} 7. b3 {[%emt 0:00:10]} Qa5 {[%emt 0:01:32]} 8. Bb2 {[%emt 0:00:39]} Qh5 {[%emt 0:00:08]} 9. Nc3 {[%emt 0:00:16]} e5 {[%emt 0:00:42]} 10. dxe5 {[%emt 0:00:43]} dxe5 {[%emt 0:00:01]} 11. Qc2 {[%emt 0:01:13]} Re8 {[%emt 0:00:37]} 12. e4 {[%emt 0:00:11]} Na6 {[%emt 0:00:42]} 13. a3 {[%emt 0:01:03]} Bh3 {[%emt 0:01:19]} 14. Nh4 {[%emt 0:00:16]} Bxg2 {[%emt 0:00:10]} 15. Kxg2 {[%emt 0:00:14]} Nc5 {[%emt 0:01:22]} 16. Nf3 {[%emt 0:02:20]} Nfd7 {[%emt 0:10:34]} 17. Rad1 {[%emt 0:01:16]} Re7 {[%emt 0:00:00]} 18. b4 {[%emt 0:02:04]} Ne6 {[%emt 0:00:02]} 19. h3 {[%emt 0:00:33]} f5 {[%emt 0:00:34]} 20. c5 {[%emt 0:02:28]} Rf8 {[%emt 0:02:02]} 21. Qb3 {[%emt 0:01:15]} fxe4 {[%emt 0:02:50]} 22. Nxe4 {[%emt 0:04:25]} Ref7 {[%emt 0:00:01]} 23. Qxe6 {[%emt 0:03:40]} Qxf3+ {[%emt 0:00:11]} 24. Kg1 {[%emt 0:00:01]} Qxe4 {[%emt 0:00:15]} 25. Rxd7 {[%emt 0:00:04]} Qf5 {[%emt 0:00:15]} 26. Qxf5 {[%emt 0:00:09]} gxf5 {[%emt 0:00:04]} 27. Rfd1 {[%emt 0:00:16]} e4 {[%emt 0:00:06]} 28. Bxg7 {[%emt 0:00:39]} Kxg7 {[%emt 0:00:01]} 29. Kf1 {[%emt 0:00:10]} Rxd7 {[%emt 0:00:41]} 30. Rxd7+ {[%emt 0:00:01]} Rf7 {[%emt 0:00:00]} 31. Rd6 {[%emt 0:00:04]} Rf6 {[%emt 0:00:11]} 32. Rd7+ {[%emt 0:00:04]} Rf7 {[%emt 0:00:01]} 33. Rd6 {[%emt 0:00:31]} Rf6 {[%emt 0:00:01]} 34. Rd7+ {[%emt 0:00:17]} Rf7 {[%emt 0:00:01]} 35. Rd6 {[%emt 0:00:07]} 1/2-1/2

[Event "Czech Open Rapid G1 2024"]
[Site "Pardubice"]
[Date "2024.07.18"]
[Round "6.34"]
[White "Silar, Lubomir"]
[Black "Pejrimovsky, Tadeas Rubel"]
[Result "1/2-1/2"]
[Annotator "RC"]
[ECO "B08"]
[WhiteElo "1973"]
[BlackElo "1847"]
[PlyCount "23"]
[EventDate "2024.07.16"]
[EventType "swiss"]
[EventCountry "CZE"]
[SourceTitle "playchess.com"]
[Source "ChessBase"]
[SourceQuality "1"]
[TimeControl "1200+10"]

1. d4 {[%emt 0:00:03]} Nf6 {[%emt 0:00:01]} 2. Nf3 g6 {[%emt 0:00:02]} 3. Nc3 {[%emt 0:00:20]} Bg7 {[%emt 0:00:04]} 4. e4 {[%emt 0:00:00]} d6 {[%emt 0:00:12]} 5. h3 {[%emt 0:00:15]} O-O {[%emt 0:00:09]} 6. Bd3 {[%emt 0:00:04]} Nbd7 {[%emt 0:00:22]} 7. O-O {[%emt 0:00:19]} e5 {[%emt 0:00:01]} 8. dxe5 {[%emt 0:00:46]} dxe5 {[%emt 0:00:03]} 9. Be3 {[%emt 0:00:36]} c6 10. a4 {[%emt 0:00:44]} a5 {[%emt 0:00:21]} 11. Qd2 {[%emt 0:00:55]} Re8 {[%emt 0:01:01]} 12. Bc4 {[%emt 0:00:09]} 1/2-1/2

[Event "Czech Open Rapid G1 2024"]
[Site "Pardubice"]
[Date "2024.07.18"]
[Round "6.35"]
[White "Skoloud, Barnabas"]
[Black "Dovzhenko, Viktor"]
[Result "1-0"]
[Annotator "RC"]
[ECO "B06"]
[WhiteElo "1914"]
[BlackElo "2044"]
[PlyCount "55"]
[EventDate "2024.07.16"]
[EventType "swiss"]
[EventCountry "CZE"]
[SourceTitle "playchess.com"]
[Source "ChessBase"]
[SourceQuality "1"]
[TimeControl "1200+10"]

1. e4 {[%emt 0:00:02]} g6 {[%emt 0:02:30]} 2. d4 {[%emt 0:02:28]} a6 {[%emt 0:00:04]} 3. c4 {[%emt 0:00:49]} c6 {[%emt 0:00:10]} 4. Nf3 {[%emt 0:00:32]} d6 {[%emt 0:00:29]} 5. Be3 {[%emt 0:01:01]} Nf6 {[%emt 0:00:14]} 6. Nc3 {[%emt 0:00:58]} b5 {[%emt 0:00:10]} 7. Qc2 {[%emt 0:00:23]} Ng4 {[%emt 0:02:20]} 8. Bf4 {[%emt 0:00:11]} Nd7 {[%emt 0:00:22]} 9. Rd1 {[%emt 0:00:36]} Qc7 {[%emt 0:02:16]} 10. c5 {[%emt 0:02:48]} b4 {[%emt 0:02:37]} 11. cxd6 {[%emt 0:00:25]} exd6 {[%emt 0:01:44]} 12. Na4 {[%emt 0:01:11]} Bg7 {[%emt 0:00:39]} 13. h3 {[%emt 0:03:07]} Ngf6 {[%emt 0:00:08]} 14. e5 {[%emt 0:00:08]} dxe5 {[%emt 0:01:15]} 15. dxe5 {[%emt 0:00:20]} Nh5 {[%emt 0:00:36]} 16. Bh2 {[%emt 0:01:36]} O-O {[%emt 0:02:54]} 17. e6 {[%emt 0:02:07]} Ne5 {[%emt 0:00:02]} 18. exf7+ {[%emt 0:01:24]} Kh8 {[%emt 0:00:10]} 19. Nxe5 {[%emt 0:00:18]} Bxe5 {[%emt 0:00:02]} 20. Qc5 {[%emt 0:00:04]} Rxf7 {[%emt 0:04:10]} 21. Bxe5+ {[%emt 0:00:02]} Qxe5+ {[%emt 0:00:09]} 22. Qxe5+ {[%emt 0:00:01]} Nf6 {[%emt 0:00:14]} 23. Rd8+ {[%emt 0:00:42]} Kg7 {[%emt 0:00:01]} 24. Nb6 {[%emt 0:00:09]} Bb7 {[%emt 0:00:31]} 25. Nxa8 {[%emt 0:00:12]} c5 {[%emt 0:00:10]} 26. Bc4 {[%emt 0:00:24]} Bxg2 {[%emt 0:00:25]} 27. Rg1 Bxa8 {[%emt 0:00:11]} 28. Bxf7 {[%emt 0:00:08]} 1-0

[Event "Czech Open Rapid G1 2024"]
[Site "Pardubice"]
[Date "2024.07.18"]
[Round "6.36"]
[White "Pejrimovska, Viola Ruby"]
[Black "Chaika, Vitalii"]
[Result "1-0"]
[Annotator "RC"]
[ECO "B07"]
[WhiteElo "1780"]
[BlackElo "2111"]
[PlyCount "59"]
[EventDate "2024.07.16"]
[EventType "swiss"]
[EventCountry "CZE"]
[SourceTitle "playchess.com"]
[Source "ChessBase"]
[SourceQuality "1"]
[TimeControl "1200+10"]

1. e4 {[%emt 0:00:02]} d6 {[%emt 0:01:00]} 2. d4 {[%emt 0:00:03]} c6 {[%emt 0:00:01]} 3. Nc3 {[%emt 0:00:13]} Nf6 {[%emt 0:00:03]} 4. f3 {[%emt 0:01:15]} Nbd7 {[%emt 0:00:09]} 5. Be3 {[%emt 0:00:06]} e5 {[%emt 0:00:01]} 6. Qd2 {[%emt 0:00:30]} Be7 {[%emt 0:00:06]} 7. O-O-O {[%emt 0:00:12]} b5 {[%emt 0:01:31]} 8. Kb1 {[%emt 0:00:59]} O-O {[%emt 0:01:44]} 9. g4 {[%emt 0:00:18]} Nb6 {[%emt 0:00:45]} 10. h4 {[%emt 0:01:30]} b4 {[%emt 0:00:10]} 11. Nce2 {[%emt 0:04:22]} Nc4 {[%emt 0:00:02]} 12. Qc1 {[%emt 0:00:02]} Nxe3 {[%emt 0:00:07]} 13. Qxe3 {[%emt 0:00:04]} Qb6 {[%emt 0:00:07]} 14. h5 {[%emt 0:01:07]} Ne8 {[%emt 0:05:11]} 15. g5 {[%emt 0:01:07]} f5 {[%emt 0:00:08]} 16. gxf6 {[%emt 0:00:44]} Nxf6 {[%emt 0:00:08]} 17. Nh3 {[%emt 0:01:47]} d5 {[%emt 0:04:12]} 18. Rg1 {[%emt 0:01:20]} dxe4 {[%emt 0:01:55]} 19. Qg5 {[%emt 0:02:10]} Rf7 {[%emt 0:00:31]} 20. Qxe5 {[%emt 0:01:26]} exf3 {[%emt 0:00:49]} 21. Nef4 {[%emt 0:00:45]} Nd5 {[%emt 0:01:13]} 22. h6 {[%emt 0:02:43]} g6 {[%emt 0:03:18]} 23. Nxg6 {[%emt 0:00:03]} hxg6 {[%emt 0:00:01]} 24. Rxg6+ {[%emt 0:00:02]} Kh7 {[%emt 0:00:34]} 25. Rg7+ {[%emt 0:00:02]} Kxh6 {[%emt 0:00:07]} 26. Rxf7 {[%emt 0:00:17]} Nc3+ {[%emt 0:00:20]} 27. Ka1 {[%emt 0:00:04]} Nxd1 {[%emt 0:00:16]} 28. Qg7+ {[%emt 0:00:40]} Kh5 {[%emt 0:00:01]} 29. Qh7+ {[%emt 0:00:28]} Kg4 {[%emt 0:00:06]} 30. Rg7+ {[%emt 0:00:03]} 1-0